Cogmind - Beta 16.1 @@@ ROGUE MODE // 2026.04.11 @ 03:58:41 Player: KURIIRI Result: Self-destructed Performance ------------- Evolutions (4) 2000 Regions Visited (5) 1000 Robots Destroyed (84) 420 Value Destroyed (3099) 3099 Prototype IDs (19) 380 Alien Tech Used (0) 0 Bonus (1060) 1060 TOTAL SCORE: 7959 Bonus ------- High Alert Combat Kills 72 Follower Combat Kills 188 Registered with UFD 300 Met Optimus in HQ 500 Cogmind --------- Core Integrity 269/850 Matter 154/300 Energy 56/100 System Corruption 3% Temperature Cool (0) Movement Core (750) Ox14 Location -6/Factory Parts ------- > --- POWER (1) -------- (None) > --- PROPULSION (4) --- (None) > --- UTILITY (7) ------ High-capacity Storage Unit Core Analyzer > --- WEAPON (3) ------- Makeshift Hammer > --- INVENTORY (20) --- Gravmag System Gravmag System Gravmag System Antigrav System Advanced Heat Sink Large Storage Unit Huge Storage Unit Compact Battery (200) Compact Matter Pod (150) Advanced Sensor Array Improved Signal Interpreter Improved Particle Charger Improved Hacking Suite Relay Coupler [NC] (22) System Restoration Module System Restoration Module Improved Remote Datajack Multitool Peak State ------------ > --- POWER ------------ Improved Deuterium Engine > --- PROPULSION ------- Armored Wheel Overtuned Scrapsphere Overtuned Huge Scrapsphere > --- UTILITY ---------- Scrap Suit Improved Heat Sink Huge Storage Unit Core Analyzer Improved Hacking Suite Improved Hacking Suite > --- WEAPON ----------- Improved EM Pulse Cannon Heavy Plasma Cannon Improved Heavy Machine Gun > --- INVENTORY -------- Improved Deuterium Engine Armored Wheel Gravmag System Gravmag System Gravmag System Antigrav System Advanced Heat Sink Large Storage Unit High-capacity Storage Unit Compact Battery Compact Matter Pod Advanced Sensor Array Improved Signal Interpreter Improved Particle Charger Improved Particle Charger Improved Hacking Suite Relay Coupler [NC] System Restoration Module System Restoration Module Plasma Rifle Gauss Rifle Precision Rocket Launcher Improved Remote Datajack Multitool Makeshift Hammer [Rating: 71] Favorites ----------- Power Ion Engine Engine Ion Engine Power Core Light Nuclear Core Propulsion Armored Wheel Treads Light Treads Leg Carbon-fiber Leg Wheel Armored Wheel Utility Large Storage Unit Device Improved Heat Sink Storage Large Storage Unit Processor Core Analyzer Hackware Improved Hacking Suite Protection Light Armor Plating Weapon Subdweller Laser Energy Gun Subdweller Laser Energy Cannon Beam Cannon Ballistic Gun Overtuned Coil Gun Ballistic Cannon Gauss Cannon Launcher Precision Rocket Launcher Impact Weapon Makeshift Hammer Build | -11 -10 -10 -9 -9 -6 ------- Run | Yrd Mat Sub Rec Scr Fac Slots Evolved 8 | . . . . . 8 Power . | . . . . . . Propulsion 2 | . . . . . 2 Utility 5 | . . . . . 5 Weapon 1 | . . . . . 1 Parts Attached 63 | 3 7 14 3 4 32 Power 6 | . 1 1 . . 4 Engine 3 | . . 1 . . 2 Core 3 | . 1 . . . 2 Reactor . | . . . . . . Propulsion 16 | 2 . 3 2 . 9 Treads 3 | 2 . 1 . . . Leg 6 | . . . . . 6 Wheel 7 | . . 2 2 . 3 Hover . | . . . . . . Flight . | . . . . . . Utility 17 | 1 2 2 . 2 10 Device 7 | 1 1 1 . . 4 Storage 4 | . 1 . . 1 2 Processor 2 | . . . . 1 1 Hackware 2 | . . . . . 2 Protection 2 | . . 1 . . 1 Artifact . | . . . . . . Weapon 24 | . 4 8 1 2 9 Energy Gun 9 | . . 3 1 . 5 Energy Cannon 5 | . 2 3 . . . Ballistic Gun 6 | . 1 1 . 1 3 Ballistic Cannon 1 | . . . . 1 . Launcher 2 | . 1 . . . 1 Special Weapon . | . . . . . . Impact Weapon 1 | . . 1 . . . Slashing Weapon . | . . . . . . Piercing Weapon . | . . . . . . Special Melee Weapon . | . . . . . . Unidentified Prototypes 3 | . . . . . 3 Parts Lost 34 | . . 6 . . 28 Power 6 | . . 1 . . 5 Propulsion 10 | . . 4 . . 6 Utility 7 | . . 1 . . 6 Weapon 11 | . . . . . 11 Highest Loss Streak 12 | . . 3 . . 12 To Critical Strikes 2 | . . . . . 2 Average Backups 14 | 6 11 14 15 12 21 Power 1 | 1 2 2 4 1 . Propulsion 2 | 4 2 1 1 1 4 Utility 4 | . 2 3 2 3 11 Weapon 5 | 1 5 5 7 5 3 Tool/Special . | . . . . . . Unused Backups 37 | . 3 3 . 10 21 Power 7 | . 2 1 . 4 . Propulsion 7 | . . . . 2 5 Utility 16 | . 1 1 . 1 13 Weapon 5 | . . 1 . 3 1 Tool/Special 2 | . . . . . 2 Average Slot Usage (%) 89 | . 99 85 90 98 74 Engine 6 | . 1 2 14 14 2 Core 3 | . 12 1 . . 1 Treads 8 | . 27 12 . . . Wheel 14 | . . 12 19 28 17 Device 7 | . 13 6 . . 11 Storage 12 | . 14 14 14 14 6 Processor 2 | . . . . 2 7 Hackware 1 | . . . . . 5 Protection 5 | . . 7 14 10 1 Energy Gun 10 | . . 6 25 20 4 Energy Cannon 9 | . 24 13 . . 3 Ballistic Gun 3 | . 3 8 . 3 3 Ballistic Cannon 1 | . . . . 3 4 Peak Build Rating 71 | 9 12 14 14 25 71 Average Rating 23 | 6 11 10 12 16 60 On Entrance 13 | 6 9 12 13 14 25 Avg Prop Armor Cover (%) 9 | . . 9 . . . Naked Turns . | . . . . . . Heaviest Build 125 | 13 32 36 36 37 125 Greatest Support 50 | 40 40 40 32 24 50 Greatest Overweight (x) 11 | . . 2 1 1 11 Average Overweight (x) 1 | . . . 1 1 2 Largest Inventory Capacity 25 | 8 15 15 15 15 25 Average Capacity 16 | 8 13 15 15 15 24 Most Carried 25 | 6 15 15 15 15 25 Average Carried 15 | 5 11 14 15 13 22 Final Capacity 20 | 8 15 15 15 15 20 Final Carried 18 | 4 15 15 15 15 18 Scrap Suit Usage (%) 15 | . . . . . 70 Parts Cannibalized 7 | . . . . . 7 Class Distribution -------------------- 66% | Mutant 13% | Scrapper 9% | Commander-Mutant 5% | Hacker-Scrapper 4% | Scavenger-Mutant Dominant Class ---------------- Mutant | -10/Materials Mutant | -10/Subcaves Commander-Mutant | -9/Recycling Mutant | -9/Scraptown Scrapper | -6/Factory Resources | -11 -10 -10 -9 -9 -6 ----------- Run | Yrd Mat Sub Rec Scr Fac Matter Collected 1554 | 270 182 159 40 . 903 Remotely . | . . . . . . Salvage Created 3717 | 102 782 457 118 . 2258 Parts 191 | 7 53 21 8 . 102 Haulers Intercepted 2 | . 2 . . . . Recyclers Shooed 4 | . . . . . 4 Parts Field Recycled . | . . . . . . Retrieved Matter . | . . . . . . Parts Self-Destructed 6 | . . 6 . . . Prevented . | . . . . . . Parts Restored . | . . . . . . Kills | -11 -10 -10 -9 -9 -6 ------- Run | Yrd Mat Sub Rec Scr Fac Combat Hostiles Destroyed 58 | . 13 10 2 . 33 Guns 23 | . 2 5 2 . 14 Cannons 21 | . 11 5 . . 5 AOE 12 | . . . . . 12 Classes Destroyed 18 | 2 6 3 1 . 6 Worker 3 | . 1 . . . 2 Builder 3 | . 1 . . . 2 Tunneler 2 | 2 . . . . . Hauler 2 | . 2 . . . . Recycler 7 | 1 . . 1 . 5 Mechanic 1 | . . . . . 1 Operator 3 | . 2 . . . 1 Watcher 5 | . 3 . . . 2 Swarmer 2 | . . 1 1 . . Cutter 1 | . . . . . 1 Grunt 24 | . 13 . . . 11 Protector 1 | . . . . . 1 Sentry 3 | . . . 1 . 2 Specialist 4 | . . . . . 4 Hunter 9 | . . . . . 9 Programmer 5 | . . . . . 5 Artisan 1 | . . 1 . . . Subdweller 9 | . . 9 . . . Best Kill Streak 16 | 1 5 4 2 . 16 Combat Bots Only 14 | . 2 4 2 . 14 Max Kills in Single Turn 4 | 1 2 1 1 . 4 Gunslinging . | . . . . . . Exploded 3 | . . . . . 3 Melee . | . . . . . . Uniques/NPCs Destroyed . | . . . . . . Combat | -11 -10 -10 -9 -9 -6 -------- Run | Yrd Mat Sub Rec Scr Fac Hostile Shots Fired 475 | . 34 69 5 . 367 Missed 137 | . 6 23 . . 108 Hits 338 | . 28 46 5 . 259 Melee 14 | . . . . . 14 Projectile 324 | . 28 46 5 . 245 AOE 2 | . . 1 . . 1 Critical Strikes 12 | . 1 1 . . 10 Damage Taken 5360 | . 392 773 56 . 4139 Core 807 | . 87 122 17 . 581 Absorbed by Shields 113 | . . . . . 113 Regen/Repaired (Parts) 164 | . 112 . . . 52 Core Remaining (%) 54 | 100 . . . 9 . Volleys Fired 236 | 10 50 62 4 . 110 Largest 3 | 2 2 2 2 . 3 Hottest 166 | 40 120 120 120 . 166 Shots Fired 433 | 20 99 108 8 . 198 Gun 222 | 20 14 60 8 . 120 Cannon 202 | . 84 48 . . 70 Launcher 9 | . 1 . . . 8 Special . | . . . . . . Kinetic 145 | 20 14 12 . . 99 Thermal 255 | . 84 96 8 . 67 Explosive 9 | . 1 . . . 8 Electromagnetic 24 | . . . . . 24 Robot Hit Streak 19 | 4 12 19 7 . 9 Robot Miss Streak 4 | 2 3 4 1 . 3 Penetration Max 1 | . . . . . 1 Secondary Targets 3 | . . . 1 . 2 Max Gunslinging Chain 1 | . . . 1 . 1 Shots Hit Robots 264 | 12 64 52 5 . 131 Core Hits 140 | 4 28 18 4 . 86 Critical Kills 3 | . 1 . . . 2 Critical Parts Destroyed 2 | . . . . . 2 Critical Strikes 10 | . 1 1 . . 8 Burn 1 | . . . . . 1 Meltdown 1 | . . . . . 1 Destroy 4 | . 1 1 . . 2 Blast 3 | . . . . . 3 Smash 1 | . . . . . 1 Melee Attacks 16 | . . 1 . . 15 Impact 16 | . . 1 . . 15 Slashing . | . . . . . . Piercing . | . . . . . . Sneak Attacks . | . . . . . . Combat Hostiles . | . . . . . . Follow-up Attacks . | . . . . . . Damage Inflicted 8146 | 145 1111 972 100 . 5818 Guns 2668 | 145 119 461 100 . 1843 Cannons 3030 | . 976 511 . . 1543 Explosions 2228 | . 11 . . . 2217 Melee 215 | . . . . . 215 Ramming 5 | . 5 . . . . Kinetic 2246 | 145 119 148 . . 1834 Thermal 3078 | . 976 824 100 . 1178 Explosive 2228 | . 11 . . . 2217 Electromagnetic 374 | . . . . . 374 Impact 215 | . . . . . 215 Slashing . | . . . . . . Piercing . | . . . . . . Highest Corruption 3 | . . . . . 3 Average Corruption 1 | . . . . . 1 Corruption Purged 1 | . . . . . 1 Corruption Blocked . | . . . . . . Effects 5 | . . . . . 5 Message Errors 2 | . . . . . 2 Matter Fused 1 | . . . . . 1 Heat Flow Errors 1 | . . . . . 1 Misfires 1 | . . . . . 1 Overload Shots . | . . . . . . Overflow Damage 166 | . 16 . . . 150 Projectiles 51 | . 16 . . . 35 Explosions 53 | . . . . . 53 Melee 62 | . . . . . 62 Knockbacks 5 | . . . . . 5 Impact 1 | . . . . . 1 Kinetic 4 | . . . . . 4 Secondary . | . . . . . . Self-Inflicted Damage 76 | . 22 . . . 54 Shots 2 | . 1 . . . 1 Rammed . | . . . . . . Targets Rammed 1 | . 1 . . . . Kicked . | . . . . . . Crushed 1 | . 1 . . . . Highest Temperature 407 | . 207 36 216 . 407 Average Temperature 75 | . 62 15 93 . 96 Received Heat Transfer 932 | . 231 111 9 . 581 Effects 2 | . . . . . 2 Interference 2 | . . . . . 2 Siege Activations . | . . . . . . Martial Activations . | . . . . . . Shielding Activations . | . . . . . . Robots Disrupted . | . . . . . . Combat Hostiles . | . . . . . . Robots Corrupted 2 | . . . . . 2 Combat Hostiles 2 | . . . . . 2 Parts Fried 4 | . . . . . 4 Impact Corruptions 3 | . . . . . 3 Robots Melted 1 | . . . . . 1 Combat Hostiles . | . . . . . . Parts Melted 18 | . 3 4 . . 11 Heat Transferred 5661 | . 2035 1411 125 . 2090 Parts Sabotaged . | . . . . . . Parts Stolen . | . . . . . . Parts Stripped . | . . . . . . Power Chain Reactions . | . . . . . . Alert | -11 -10 -10 -9 -9 -6 ------- Run | Yrd Mat Sub Rec Scr Fac Maximum Alert Level 2 | . . . . . 2 Low Security (%) 96 | 100 100 . 100 . 89 Level 1 . | . . . . . 1 Level 2 3 | . . . . . 8 Level 3 . | . . . . . . Level 4 . | . . . . . . Level 5 . | . . . . . . High Security . | . . . . . . Max Security . | . . . . . . Peak Influence 461 | 5 184 . 129 . 461 Initial 18 | . . . 18 . . Average 77 | 1 77 . 62 . 89 Influence Increases 2137 | 15 493 80 397 . 1152 Destroy 0b10 Robot/C 1060 | . 260 20 80 . 700 Destroy 0b10 Robot/NC 135 | 15 45 . 5 . 70 Destroy Leader 254 | . 90 . . . 164 Allied During Kill 36 | . . . 17 . 19 Successful Hack 77 | . 16 . 53 . 8 Select Force Hacks 350 | . 60 . 240 . 50 Disable Machine 30 | . . . . . 30 Destroy Structure 90 | . 7 . 2 . 81 Lose Combat Pursuer 105 | . 15 60 . . 30 Influence Decreases 1735 | 15 454 81 420 15 750 Entered New Map 54 | . . 19 20 15 . Time Decay 1374 | 15 454 52 380 . 473 Lost Part 270 | . . 10 . . 260 Lost Ally 37 | . . . 20 . 17 Squads Dispatched 13 | . 4 . . . 9 Investigation 5 | . 2 . . . 3 Extermination 3 | . . . . . 3 Reinforcement 5 | . 2 . . . 3 Assault . | . . . . . . Garrison . | . . . . . . Intercept . | . . . . . . Searches Triggered . | . . . . . . Construction Impeded 2 | . . . . . 2 Haulers Reinforced . | . . . . . . Active Scanning Responses . | . . . . . . Cargo Convoy Interrupts 1 | . . . . . 1 Stealth | -11 -10 -10 -9 -9 -6 --------- Run | Yrd Mat Sub Rec Scr Fac Distress Signals . | . . . . . . Communications Jammed . | . . . . . . Distress Signals . | . . . . . . Times Spotted 87 | . 20 12 2 . 53 Peak Tracking Total 11 | . 3 4 . . 11 Tactical Retreats 5 | . 1 2 . . 2 Traps | -11 -10 -10 -9 -9 -6 ------- Run | Yrd Mat Sub Rec Scr Fac Traps Triggered 8 | . 2 . . . 6 Indirectly . | . . . . . . Trap Hack Attempts . | . . . . . . Triggered . | . . . . . . Disarmed 9 | . 9 . . . . Reprogrammed . | . . . . . . Reused . | . . . . . . Traps Extracted . | . . . . . . Installed . | . . . . . . Triggered . | . . . . . . Machines | -11 -10 -10 -9 -9 -6 ---------- Run | Yrd Mat Sub Rec Scr Fac Machines Disabled 2 | . . . . . 2 Max in Single Turn 1 | . . . . . 1 Machines Repaired . | . . . . . . Machines Dismantled . | . . . . . . Machines Sabotaged . | . . . . . . Overloaded Fab Kills . | . . . . . . Hacking | -11 -10 -10 -9 -9 -6 --------- Run | Yrd Mat Sub Rec Scr Fac Machines Accessed 40 | . 9 1 13 6 11 Terminals 15 | . 6 . 5 . 4 Fabricators 2 | . . . . . 2 Repair Stations 1 | . 1 . . . . Recycling Units 12 | . 2 . 8 . 2 Scanalyzers 2 | . . . . . 2 Garrison Access 1 | . . . . . 1 Total Hacks 125 | . 26 1 35 30 33 Successful 90 | . 15 1 22 30 22 Failed 32 | . 10 . 12 . 10 Catastrophic 1 | . . . . . 1 Database Lockouts 3 | . 1 . 1 . 1 Manual 60 | . 20 . 27 . 13 Terminals 53 | . 19 . 25 . 9 Fabricators 6 | . . . . . 6 Repair Stations 3 | . 3 . . . . Recycling Units 16 | . 4 . 10 . 2 Scanalyzers 14 | . . . . . 14 Garrison Access 2 | . . . . . 2 Terminal Hacks 47 | . 6 1 8 30 2 Record 23 | . . . . 23 . Part Schematic 2 | . . . 1 . 1 Robot Analysis 10 | . 1 . 2 7 . Prototype ID Bank 3 | . . . 3 . . Machine Index 1 | . . . . . 1 Terminal Index 1 | . . . 1 . . Locate Traps 1 | . 1 . . . . Disarm Traps 2 | . 2 . . . . Security Status 1 | . . . 1 . . Zone Layout 2 | . 2 . . . . Proto ID Catalog 1 | . . 1 . . . Fabricator Hacks 1 | . . . . . 1 Network Status 1 | . . . . . 1 Repair Station Hacks 2 | . 2 . . . . Scan Component 1 | . 1 . . . . Repair 1 | . 1 . . . . Recycling Unit Hacks 1 | . 1 . . . . Retrieve Components 1 | . 1 . . . . Scanalyzer 13 | . . . . . 13 Insert Component 5 | . . . . . 5 Analyze 7 | . . . . . 7 Retrieve Study 1 | . . . . . 1 Garrison Access Hacks . | . . . . . . Unauthorized Hacks 26 | . 6 . 14 . 6 Terminals 12 | . 4 . 6 . 2 Assimilate 1 | . 1 . . . . Botnet 4 | . 2 . 1 . 1 Operators 1 | . 1 . . . . Skim 6 | . . . 5 . 1 Fabricators 2 | . . . . . 2 Report 1 | . . . . . 1 Overload 1 | . . . . . 1 Repair Stations . | . . . . . . Recycling Units 12 | . 2 . 8 . 2 Tunnel 10 | . 2 . 8 . . Fedlink 1 | . . . . . 1 Scrapoids 1 | . . . . . 1 Scanalyzers . | . . . . . . Garrison Access . | . . . . . . Data Cores Recovered 1 | . . . . . 1 Used 1 | . . . . . 1 Hacking Detections 19 | . 6 . 5 . 8 Full Trace Events 1 | . 1 . . . . Feedback Events . | . . . . . . Feedback Blocked . | . . . . . . Robot Schematics Acquired . | . . . . . . Robots Built . | . . . . . . Authchips . | . . . . . . Time . | . . . . . . Total Robot Build Rating . | . . . . . . Part Schematics Acquired 7 | . . . 1 . 6 Parts Built . | . . . . . . Authchips . | . . . . . . Time . | . . . . . . Total Part Build Rating . | . . . . . . Part Studies Acquired 1 | . . . . . 1 Parts Repaired 1 | . 1 . . . . Time 26 | . 26 . . . . Parts Recycled . | . . . . . . Recycled Matter . | . . . . . . Retrieved Matter . | . . . . . . Retrieved Components 9 | . 9 . . . . Parts Scanalyzed 5 | . . . . . 5 Part Schematics Acquired 5 | . . . . . 5 Parts Damaged . | . . . . . . Bothacking | -11 -10 -10 -9 -9 -6 ------------ Run | Yrd Mat Sub Rec Scr Fac Used RIF Installer . | . . . . . . Robots Hacked . | . . . . . . Non-combat . | . . . . . . Combat . | . . . . . . Robot Hacks Applied . | . . . . . . Relay Couplers Released 4 | . . . . . 4 Programmers 4 | . . . . . 4 Fabnet Peak Effective % . | . . . . . . Robots Rewired 11 | . . . 11 . . Allies Hacked . | . . . . . . Hacks Repelled . | . . . . . . Allies | -11 -10 -10 -9 -9 -6 -------- Run | Yrd Mat Sub Rec Scr Fac Total Allies 17 | . 1 . 11 . 5 Largest Group 10 | . 1 1 10 2 4 Highest-Rated Group 178 | . 10 10 178 54 112 Highest-Rated Ally 28 | . 10 10 27 27 28 Initial UFD Resources 23 | . . . . . 23 Total Orders 6 | . . 1 3 . 2 STAY 3 | . . 1 1 . 1 FOLLOW 3 | . . . 2 . 1 Ally Attacks 30 | . . . 7 . 23 Total Damage 591 | . . . 88 . 503 Kills 6 | . . . 2 . 4 Allies Corrupted 1 | . . . . . 1 Allies Melted . | . . . . . . Intel | -11 -10 -10 -9 -9 -6 ------- Run | Yrd Mat Sub Rec Scr Fac Active Infowar (turns) 887 | 18 183 74 . 295 317 Optics 612 | . . . . 295 317 Terrain 275 | 18 183 74 . . . Robot Analysis Total 10 | . 1 . 2 7 . Derelict Logs Recovered 8 | . . 3 . 5 . Drone Launches . | . . . . . . Drone Recoveries . | . . . . . . Exploration | -11 -10 -10 -9 -9 -6 ------------- Run | Yrd Mat Sub Rec Scr Fac Turns Passed 7196 | 94 1637 1477 880 1536 1572 Spaces Moved 4506 | 50 717 828 475 1420 1016 Core . | . . . . . . Treads 942 | 1 717 224 . . . Legs 54 | 49 . . . . 5 Wheels 3510 | . . 604 475 1420 1011 Hover . | . . . . . . Flight . | . . . . . . Fastest Speed 87 | 120 160 115 105 105 87 Average Speed 121 | 120 160 144 114 105 103 Slowest Speed 540 | 160 160 240 120 105 540 Overloaded Moves . | . . . . . . Propulsion Burnouts . | . . . . . . Robots Hopped . | . . . . . . Potential Cave-ins . | . . . . . . Cave-ins Triggered . | . . . . . . Exploration Rate (%) 59 | 3 98 50 89 87 32 Regions Visited 5 Branch Regions 3 Pre-discovered Areas 19 | . 2 3 12 2 . Known Exits Taken 1 | . . . 1 . . Unknown Exits Taken 4 | 1 1 1 . 1 . Scrap Searched 13 | . . 10 . 3 . Spaces Dug 12 | . 7 2 . . 3 Terrain Destroyed 116 | . 7 2 . . 107 Melee 1 | . . 1 . . . Projectile 45 | . . 1 . . 44 AOE 70 | . 7 . . . 63 Terrain Rammed . | . . . . . . Walls Destroyed . | . . . . . . Machines Disabled . | . . . . . . Actions | -11 -10 -10 -9 -9 -6 --------- Run | Yrd Mat Sub Rec Scr Fac Total 5814 | 64 1105 999 802 1473 1371 Wait 699 | . 312 65 166 18 138 Move 4501 | 49 716 827 474 1419 1016 Hop . | . . . . . . Pick Up 70 | . 12 14 . 14 30 Fast Attach 23 | 1 4 4 1 1 12 Attach 26 | 2 . 4 . 2 18 Detach 1 | . . 1 . . . Swap 26 | . 7 8 2 1 8 Drop 53 | 2 3 13 1 18 16 Fire 236 | 10 50 62 4 . 110 Melee 16 | . . 1 . . 15 Ram . | . . . . . . Kick . | . . . . . . Crush 1 | . 1 . . . . Escape Stasis 8 | . . . . . 8 Rewire 154 | . . . 154 . . Trap . | . . . . . . Miscellaneous . | . . . . . . Route ------- -11/Scrapyard -10/Materials (discovered 6 exits: [*Mat x3] / [*Min x2] / *Sub) -10/Subcaves (discovered 3 exits: [*Mat x2] / *Rec) -9/Recycling -9/Scraptown (discovered 2 exits: *Fac x2) -6/Factory (discovered 3 exits: [*Fac x2] / [*Ext]) History --------- Turn | Location | Event 16 | -11/Scrapyard | Discovered new exit (range 3) 95 | -11/Scrapyard | Entered Materials 310 | -10/Materials | Build established: Mutant 313 | -10/Materials | Central database locked down 410 | -10/Materials | Discovered new exit (range 9) 688 | -10/Materials | Discovered new exit (range 7) 868 | -10/Materials | Discovered new exit (range 4) 1104 | -10/Materials | Repaired Lgt. Treads 1279 | -10/Materials | Discovered new exit (range 16) 1364 | -10/Materials | Discovered new exit (range 5) 1719 | -10/Materials | Discovered new exit (range 9) 1732 | -10/Materials | Entered Subcaves 1732 | -10/Subcaves | Accompanied by 1 ally 1849 | -10/Subcaves | Core integrity fell below 50% 1900 | -10/Subcaves | Lost 3 parts (1p1n1u) 2097 | -10/Subcaves | Discovered new exit (range 9) 2104 | -10/Subcaves | Learned location of Storage (-9) 2110 | -10/Subcaves | Learned location of Zion (-6) 2190 | -10/Subcaves | A swath of the cavern ceiling suddenly collapsed 2338 | -10/Subcaves | Visited 4L-MR0's lab 2599 | -10/Subcaves | Ambushed by angry Subdweller bent on revenge 2845 | -10/Subcaves | Discovered new exit (range 14) 2853 | -10/Subcaves | Shifting Twisted Machinery released Battle Rifle 2892 | -10/Subcaves | Shifting Twisted Machinery released Sub. Laser 2943 | -10/Subcaves | Disturbed a concealed Subdweller 3044 | -10/Subcaves | Core integrity fell below 20% 3077 | -10/Subcaves | Discovered new exit (range 16) 3145 | -10/Subcaves | Disturbed a concealed Subdweller 3209 | -10/Subcaves | Entered Recycling 3722 | -9/Recycling | Build established: Commander-Mutant 3762 | -9/Recycling | Learned location of 1 exit from Storage 3766 | -9/Recycling | Identified exit to Scraptown 3782 | -9/Recycling | Learned Materials emergency access door positions 4055 | -9/Recycling | Scanned before Scraplab entrance 4072 | -9/Recycling | Entered Scraplab 4089 | -9/Recycling | Entered Scraptown 4089 | -9/Scraptown | Accompanied by 2 allies 4217 | -9/Scraptown | Visited The Evicted 4224 | -9/Scraptown | Visited SPCMW 4232 | -9/Scraptown | Visited Assassins FH 4244 | -9/Scraptown | Visited Fellowship of the Rings 4273 | -9/Scraptown | Scanned Subdweller tech in exchange for log data 4276 | -9/Scraptown | Learned location of 1 exit from Research 4277 | -9/Scraptown | Learned location of Warlord (-5) 4278 | -9/Scraptown | Learned Factory security intel 4280 | -9/Scraptown | Learned Factory emergency access door positions 4331 | -9/Scraptown | Visited UFD Registry 4331 | -9/Scraptown | Registered with UFD as "Ionbank" 4380 | -9/Scraptown | Build established: Mutant 4381 | -9/Scraptown | Discovered new exit (range 11) 4406 | -9/Scraptown | Guru changed UFD alias to "Thermoface" 4544 | -9/Scraptown | Visited Comm Corps 4561 | -9/Scraptown | Visited Cave Peace 4641 | -9/Scraptown | Heard Great Nut preacher, LISTEN AND RECITE! 4750 | -9/Scraptown | Visited Sword Containment 4771 | -9/Scraptown | Visited Junk Repository 4814 | -9/Scraptown | Visited Junk Repository 4935 | -9/Scraptown | Visited Supply Room 4966 | -9/Scraptown | Visited Research Penetration Think Tank 4990 | -9/Scraptown | Visited Analyses Database 5008 | -9/Scraptown | Visited Modified Component R&D 5042 | -9/Scraptown | Visited Chapter 10 5063 | -9/Scraptown | Visited Abandonware Association 5075 | -9/Scraptown | Learned abandonware demo "ERRANTS.EXE" 5075 | -9/Scraptown | Learned abandonware demo "TRNCOAT.EXE" 5472 | -9/Scraptown | Found Scrap Suit 5545 | -9/Scraptown | Met Optimus 5545 | -9/Scraptown | Accepted into 0bPrime 5601 | -9/Scraptown | Discovered new exit (range 5) 5625 | -9/Scraptown | Entered Factory 5625 | -6/Factory | Accompanied by 2 allies 5625 | -6/Factory | Evolved 8 slots: Propulsion x2, Utility x5, Weapon x1 5872 | -6/Factory | Discovered new exit (range 5) 5931 | -6/Factory | Build established: Scrapper 5943 | -6/Factory | Central database locked down 6277 | -6/Factory | Discovered new exit (range 16) 6464 | -6/Factory | Discovered new exit (range 12) 6675 | -6/Factory | Build established: Hacker-Scrapper 6709 | -6/Factory | Spotted B-75 Beast 6854 | -6/Factory | Scrapoids reinforcements arrived? 6858 | -6/Factory | Lost 3 parts (1p1n1w) 6900 | -6/Factory | Lost 4 allies 7005 | -6/Factory | Loaded intel: 7 recycling unit locations 7033 | -6/Factory | Cargo convoy interrupted 7079 | -6/Factory | Lost 4 parts (1p2u1w) 7081 | -6/Factory | Destroyed 14 combat bots 7143 | -6/Factory | Core integrity fell below 50% 7194 | -6/Factory | Lost 12 parts (1p4n1u6w) 7197 | -6/Factory | Self-destructed Last Messages --------------- 07177_ Destroyed Lgt. Nuclear Core. 07177_ C-17 Slicer system corrupted by crushing effect. 07177_ C-17 Slicer knocked back. 07178_ C-17 Slicer system terminally corrupted. 07178_ U-05 Engineer lays Concrete. 07181_ U-05 Engineer builds a Wall. 07181_ U-05 Engineer lays Concrete. 07185_ U-05 Engineer builds a Wall. 07187_ Carbon-fiber Leg severed. 07189_ Destroyed Lgt. Nuclear Core. 07189_ C-17 Slicer system corrupted by crushing effect. 07190_ System corrupted: Matter fused (-8). 07190_ U-05 Engineer builds a Wall. 07190_ U-05 Engineer lays Concrete. 07195_ U-05 Engineer builds a Wall. 07195_ U-05 Engineer lays Concrete. 07196_ Flexi-carbon Leg severed. 07197_ U-05 Engineer builds a Wall. Map ----- +----------------------------------------------------+ | ???????????????????????????????????"Y????????????? | | ???????????????????????????????????"""???????????? | | ?????????????????????????????????????????????????? | | ?????????????????????????????????????????????????? | | ?????????????????????????????????????????????????? | | ?????????????????????????????????????????????????? | | ?????????????+???????????????????????????????????? | | ?????????????????????????????????????????????????? | | ?????????????????????????????????????????????????? | | ?????????????+???????????????????????????????????? | | ?????????????????? ? ? ? ?????????????????????? | | ???????????????""" ? ? ????????????????????? | | ?????????????### ### ? ??????????????????? | | ????????????? ""????????????????? | | ????????????? #### ????????????????? | | ?????????????? % # # ^""????????????????? | | ????????????### ## ##### ^ """???????????????? | | ????????????? ## [ ## """???????????????? | | ?????????????# # *%%[## ????????????????? | | ?????????????# # == ##u ?????????????????? | | ????????????? # ???????????????????? | | ?????????????? !% ????????????????????? | | ?????????????? ## [ ?????????????????????? | | ???????????????## # ## #??????????????????????? | | ??????????????### #= #=[#?#+######?????????????? | | ??############### # #=@# #?????????????? | | ??# =+% ! % muc= """??????????????? | | ????# !##### % """??????????????? | | ????# "" #?### = # """??????????????? | | ????# """ """ #??# % "" # ??????????????? | | ????# """ F" #??#T =! """#? """#?????????????? | | ????# """ """ #??## F"#? """??????????????? | | ????# "" #???# """#?? """??????????????? | | ????# #???# "" #?? ??????????????? | | #######+######### #???#####??????????????? | | #??????????????????????? | | #####;#######??????????????????????? | | #?# #?????????????????????????? | | ######## ### #?# """ #?????????????????????????? | | ?########+###+#?# """ *#?????????????????????????? | | ?# #?# """ #?????????????????????????? | | ?# """ """ #?# ########??????????????????? | | ?+ "Y" """"" #?# + #??????????????????? | | ?# """"" [#?############# #??????????????????? | | ?# #?????????????# #??????????????????? | | ?##############?????????????# #??????????????????? | | ????????????????????????????# #??????????????????? | | ?????????????????????????####/#####??????????????? | | ?????????????????????????# #??????????????? | | ?????????????????????????# """ #??????????????? | +----------------------------------------------------+ Best States ------------- Heat Dissipation 51 Coolant Potential 50 Energy Generation 18 Energy Capacity 290 Matter Stores 300 Matter Capacity 300 Sight Range 20 Terrain Scan Range 16 Terrain Scan Density 10 Armor Coverage 600 Evasion (%) 55 Core Analysis 6 Recoil Reduction 2 Particle Charging 20 Offensive Hacking 24 Item Schematics ----------------- Imp. EM Pulse Cannon | -9/Recycling | Hacked Multitool | -6/Factory | Scanalyzed Adv. Sensor Array | -6/Factory | Scanalyzed System Restoration Module | -6/Factory | Scanalyzed Antigrav System | -6/Factory | Scanalyzed Imp. Hacking Suite | -6/Factory | Scanalyzed Centrium Wheel | -6/Factory | Hacked Robot Schematics ------------------ None Fabricated ------------ Nothing Repaired ---------- Lgt. Treads | 20% | -10/Materials Studied --------- Gravmag System | -6/Factory | Hacked Alien Tech Used ----------------- None Achievements -------------- None Challenges ------------ None Game ------ Seed TransmissionFocalPerforator Manual? 0 Play Time 01:02:30 Cumulative 404.0 hours Start 2026.04.11 @ 02:43:42 End 2026.04.11 @ 03:58:41 Sessions 1 Manual Loads 0 Difficulty Rogue Special Mode None Game No. 344 Rogue 308 Adventurer 36 Explorer 0 Win Type - Total 5 Types 2/0/0/1/0/0/0/2/0/0 Lore% 75 Gallery% 67 Achievement% 56 Wizard Run 0 Options --------- Layout 1 ASCII 0 Keyboard 0 Movement Numpad Keybinds 0 Fullscreen 1 Font 48/Smallcaps Map View 50x35 Zoom Use 0% Tactical HUD 1 Map Filters NONE Filters NONE Steam 1 RUN: f0b836de-853b-4397-b264-1e8cb8d48184